[Event "87th Tata Steel Challengers 2025"]
[Site "Wijk aan Zee"]
[Date "2025.01.29"]
[Round "10.1"]
[White "Gurel, Ediz"]
[Black "Lu, Miaoyi"]
[Result "1/2-1/2"]
[Annotator "TA"]
[ECO "C65"]
[WhiteElo "2624"]
[BlackElo "2429"]
[PlyCount "78"]
[EventDate "2025.01.13"]
[EventType "tourn"]
[EventCountry "NED"]
[SourceTitle "playchess.com"]
[Source "ChessBase"]
[SourceQuality "1"]
[TimeControl "40/6000+30:20/3000+30:900+30"]

{[%evp 9,78,18,22,16,20,8,10,10,10,5,8,0,0,-4,0,-16,-16,-16,-13,-11,0,-8,0,-19,0,0,11,16,22,18,13,22,23,12,18,19,9,11,16,3,23,0,0,0,0,-61,-62,-51,-53,-40,-42,-59,0,0,0,0,0,0,8,-123,0,0,0,0,0,0,0,0,0,0,0]} 1. e4 {[%emt 0:00:03]} e5 {[%emt 0:00:01]} 2. Nf3 {[%emt 0:00:14]} Nc6 {[%emt 0:00:02]} 3. Bb5 {[%emt 0:00:10]} Nf6 {[%emt 0:00:02][%cal Bg8f6,Bf6d7,Bd7c5][%mdl 32]} 4. d3 {[%emt 0:00:10]} Bc5 {[%emt 0:00:04]} 5. Bxc6 {[%emt 0:00:12]} dxc6 {[%emt 0:00:05]} 6. Nbd2 {[%emt 0:00:13][%cal Oe1g1] C65: Ruy Lopez: Berlin Defence (3...Nf6), unusual lines and 4 0-0 Bc5.} (6. Nxe5 $2 Qd4 7. Be3 Qxe5 $19) 6... Nd7 {[%emt 0:00:31]} 7. Nc4 {[%emt 0:00:20][%cal Oe1g1]} f6 $1 {[%emt 0:00:06] 7...f6 is better than 7...0-0.} 8. a4 {[%emt 0:01:09]} a5 {[%emt 0:00:29]} 9. O-O {[%emt 0:02:03]} O-O {[%emt 0:00:06]} 10. Be3 {[%emt 0:04:33]} Bxe3 {[%emt 0:00:26]} 11. Nxe3 {[%emt 0:00:07]} Nc5 {[%emt 0:00:04]} 12. Nh4 $146 {[%emt 0:01:56]} (12. Kh1 Ne6 13. Ng1 Nd4 14. f4 exf4 15. Rxf4 Be6 16. Qh5 Qd7 17. Rf2 b6 18. Nh3 Bxh3 19. gxh3 f5 20. Nxf5 Nxf5 {½-½ Mikhalchuk,V (2449)-Rudenko,V (2381) Champion's League 17/Champ email 2015 [3]}) 12... g6 {[%emt 0:01:18]} 13. Nf3 {[%emt 0:04:30][%cal Bh4f3,Bf3g1,Bg1e2][%mdl 32]} Ne6 {[%emt 0:09:09]} 14. Kh1 {[%emt 0:01:08]} b6 {[%emt 0:00:21]} 15. Ng1 {[%emt 0:12:46]} c5 {[%emt 0:00:05]} 16. Ne2 {[%emt 0:12:47]} c6 {[%emt 0:14:22]} 17. b3 {[%emt 0:10:16]} Ra7 {[%emt 0:07:23]} 18. f4 {[%emt 0:02:10]} exf4 {[%emt 0:01:24]} 19. Nxf4 {[%emt 0:00:11]} Nxf4 {[%emt 0:00:17]} 20. Rxf4 {[%emt 0:00:06]} Qd4 {[%emt 0:00:41]} 21. Qg1 {[%emt 0:03:10]} Be6 {[%emt 0:06:08]} 22. Raf1 {[%emt 0:03:32]} b5 {[%emt 0:10:20]} 23. Qf2 {[%emt 0:08:28]} Raf7 {[%emt 0:09:15]} 24. Qg3 {[%emt 0:01:15] [#]} Qe5 {[%emt 0:09:59]} 25. Nf5 {[%emt 0:11:27]} Rb7 {[%emt 0:03:55]} 26. Ne3 {[%emt 0:03:01][%cal Of4f6] Rxf6! would now be deadly.} Kg7 {[%emt 0:22:13]} 27. h4 {[%emt 0:05:56]} (27. Nf5+ $11 Kh8 28. Ne3) 27... bxa4 $1 $15 {[%emt 0:02:32]} 28. bxa4 {[%emt 0:00:07]} Rb4 {[%emt 0:06:31]} 29. Ng4 {[%emt 0:03:59]} Bxg4 {Successful Defense Black} 30. Qxg4 {[%emt 0:00:01]} Rf7 {[%emt 0:06:57] Inhibits Qd7.} ({Black should play} 30... Rxa4 $15 31. Rf5 (31. Qd7+ $2 Rf7 $17) 31... Qd4) 31. Rf5 $36 {[%emt 0:02:17][%mdl 2048] White is pushing.} Qd4 {[%emt 0:00:33]} 32. R5f4 {[%emt 0:03:38]} Qe5 {[%emt 0:00:31]} 33. Rf5 {[%emt 0:00:09] Counterplay Black} Qc3 {[%emt 0:00:26]} 34. Qg3 {[%emt 0:01:17]} (34. h5 $11) 34... Rxa4 {[%emt 0:00:22]} (34... Qxc2 35. Rxf6 (35. e5 Qxa4 36. d4 Qb3 $11) 35... Rxf6 36. Qe5 $18) (34... Rxe4 $17 35. Qf2 Rxa4 36. Rxc5 Rxh4+ 37. Kg1 Qb4 38. Rxc6 f5) 35. e5 {[%emt 0:00:56] The position is equal.} Ra1 {[%emt 0:00:10] [#] aiming for ...Rxf1+.} 36. exf6+ {[%emt 0:02:36]} Rxf6 {[%emt 0:00:03]} 37. Qc7+ {[%emt 0:00:04]} Kh6 {[%emt 0:00:13]} 38. Qf4+ {[%emt 0:00:08]} Kg7 {[%emt 0:00:03]} 39. Qc7+ {[%emt 0:00:08]} (39. Rxf6 $2 {too greedy.} Rxf1+ 40. Qxf1 Qxf6 $19) 39... Kh6 {[%emt 0:00:02] Weighted Error Value: White=0.14 (very precise) /Black=0.10 (very precise)   Mistake:       	White=2     	Black=2      OK:         	White=13    	Black=12     Best:        	White=2     	Black=5      Strong:       	---       	Black=1} 1/2-1/2

[Event "87th Tata Steel Challengers 2025"]
[Site "Wijk aan Zee"]
[Date "2025.01.29"]
[Round "10.2"]
[White "Suleymanli, Aydin"]
[Black "Nogerbek, Kazybek"]
[Result "1-0"]
[Annotator "TA"]
[ECO "C55"]
[WhiteElo "2623"]
[BlackElo "2514"]
[PlyCount "155"]
[EventDate "2025.01.13"]
[EventType "tourn"]
[EventCountry "NED"]
[SourceTitle "playchess.com"]
[Source "ChessBase"]
[SourceQuality "1"]
[TimeControl "40/6000+30:20/3000+30:900+30"]

{[%evp 14,155,29,26,28,22,32,31,33,25,35,5,21,18,36,38,61,41,47,35,55,25,40,17,43,23,49,41,52,0,62,0,47,33,39,9,40,33,40,25,50,0,0,0,44,0,37,37,61,62,58,56,63,58,66,54,122,115,120,124,103,109,107,107,149,74,102,121,95,112,110,104,143,125,130,131,143,116,163,168,163,163,178,177,180,180,179,179,179,179,181,181,182,182,189,189,166,81,168,112,112,87,112,112,126,102,177,158,130,93,327,327,327,327,664,0,323,0,743,743,729,729,423,337,374,337,714,707,700,685,660,641,535,465,9267,8052,12417,11894,9267,8445,2504,1127,29979,29980]} 1. e4 {[%emt 0:00:09]} e5 {[%emt 0:00:11]} 2. Nf3 {[%emt 0:00:11]} Nc6 {[%emt 0:00:10]} 3. Bc4 {[%emt 0:00:11]} Nf6 {[%emt 0:00:12]} 4. d3 {[%emt 0:00:08]} Be7 {[%emt 0:00:07]} 5. O-O {[%emt 0:00:20]} O-O {[%emt 0:00:06]} 6. Re1 {[%emt 0:00:22]} d6 {[%emt 0:00:12]} 7. a4 {[%emt 0:00:19]} Be6 {[%emt 0:00:09]} 8. Nbd2 {[%emt 0:01:15]} Bxc4 {[%emt 0:00:10] C55: Two Knights: 4 d3, 4 d4 exd4 5 e5 and Max Lange Attack.} 9. Nxc4 {[%emt 0:00:05]} h6 {[%emt 0:00:14]} 10. c3 {[%emt 0:07:07]} Re8 {[%emt 0:07:55] White is slightly better.} 11. b4 {[%emt 0:01:37][%cal Bb2b4,Bb4b5][%mdl 32]} Bf8 {[%emt 0:02:09] 11...Bf8 is the recent fashion.} 12. b5 {[%emt 0:04:50]} Nb8 $146 {[%emt 0:03:21]} (12... Ne7 13. Ne3 d5 14. Nxe5 dxe4 15. d4 Ned5 16. Qb3 Bd6 17. N3c4 Qc8 18. Ba3 Qe6 {0-1 Sethuraman,S (2570)-Sargissian,G (2646) Julius Baer GenCup Pl/In rapid 2024 (8)}) 13. Qb3 {[%emt 0:02:44]} a5 {[%emt 0:04:48]} 14. Ba3 {[%emt 0:05:16]} Re6 {[%emt 0:07:51]} 15. Ncd2 {[%emt 0:08:53] White is much more active.} Nbd7 {[%emt 0:09:12]} 16. d4 {[%emt 0:00:21]} Nh7 {[%emt 0:02:50]} 17. h4 {[%emt 0:11:16]} Nhf6 {[%emt 0:07:51]} 18. g3 {[%emt 0:02:11]} Ng4 {[%emt 0:01:57]} 19. Kg2 {[%emt 0:02:18]} Ndf6 {[%emt 0:05:43]} 20. Qd1 {[%emt 0:16:59]} Nd7 $1 {[%emt 0:16:25]} 21. Qb3 {[%emt 0:07:35]} Ndf6 {[%emt 0:00:44]} 22. Qd1 {[%emt 0:00:08]} Nd7 $1 {[%emt 0:00:45]} 23. Ra2 {[%emt 0:00:04]} Re8 {[%emt 0:03:11]} 24. Qb3 {[%emt 0:05:22]} Ndf6 {[%emt 0:02:01]} 25. Rc2 {[%emt 0:10:21]} Nh5 {[%emt 0:13:04]} 26. Nf1 {[%emt 0:05:02]} Qd7 {[%emt 0:03:54]} 27. Rce2 {[%emt 0:05:03]} Re6 $1 {[%emt 0:01:21]} 28. dxe5 {[%emt 0:02:04]} Rg6 {[%emt 0:04:19]} 29. Bc1 $36 {[%emt 0:03:06][%mdl 2048] Dodges Nf4+. White is pushing.} Nxe5 {[%emt 0:01:46] ...Nd3 is the strong threat.} 30. c4 {[%emt 0:01:53]} Qe7 {[%emt 0:05:44]} 31. N1h2 {[%emt 0:02:18]} Re8 {[%emt 0:01:16]} 32. Kh1 {[%emt 0:03:17]} (32. Nd4 {keeps more tension.} c6 33. Nhf3 cxb5 34. cxb5 Qd7 35. Bd2) 32... Qe6 {[%emt 0:02:37]} 33. Nxe5 {[%emt 0:00:08]} dxe5 {[%emt 0:00:06]} 34. Qf3 {[%emt 0:00:10]} Nf6 {[%emt 0:03:01]} (34... Qxc4 $1 $14 35. Qxh5 Qxa4) 35. h5 $16 {[%emt 0:00:09]} Nxh5 {[%emt 0:00:23]} 36. Qxh5 {[%emt 0:00:15]} Qxc4 {[%emt 0:00:04]} 37. Rb2 {[%emt 0:04:56]} Qxa4 {[%emt 0:01:34]} 38. Qe2 $1 {[%emt 0:00:11]} Bb4 {[%emt 0:01:21]} 39. Rd1 {[%emt 0:00:28]} (39. Bd2 $142 $1) 39... Rb6 {[%emt 0:00:13]} 40. Rd5 {[%emt 0:00:17]} c6 {[%emt 0:00:56]} 41. bxc6 {[%emt 0:50:54]} Rxc6 {[%emt 0:50:07]} 42. Be3 {[%emt 0:00:00]} Rd6 {[%emt 0:00:00]} 43. Qb5 {[%emt 0:00:00]} Qxb5 {[%emt 0:00:00]} 44. Rxb5 {[%emt 0:00:00]} Rc6 {[%emt 0:00:00]} 45. Kg2 {[%emt 0:00:00][%cal Oe3d2]} (45. Rxb7 Ra8 46. Nf3 Bd6) 45... Rc4 {[%emt 0:00:00]} (45... b6 $16 46. Ra2 (46. Rxb6 Rxb6 47. Bxb6 f6 $16) (46. Bxb6 Rb8 $17) 46... f6 47. Rxb6 (47. Bxb6 $2 Rb8 $19) 47... Rxb6 48. Bxb6 h5) 46. Kf3 $18 {[%emt 0:00:00]} h5 {[%emt 0:00:00]} 47. Nf1 {[%emt 0:00:00]} Re6 {[%emt 0:00:00]} 48. Nd2 {[%emt 0:00:00]} Bxd2 {[%emt 0:00:00]} 49. Bxd2 {[%emt 0:00:00]} b6 {[%emt 0:00:00]} 50. Rxb6 {[%emt 0:00:00]} Rxb6 {[%emt 0:00:00]} 51. Rxb6 {[%emt 0:00:00][%mdl 4096] Endgame KRB-KR} a4 {[%emt 0:00:00]} 52. Ra6 {[%emt 0:00:00]} f6 {[%emt 0:00:00]} 53. Ke3 {[%emt 0:01:49]} Kf7 {[%emt 0:00:00]} 54. Ra7+ {[%emt 0:01:55]} Kg8 {[%emt 0:00:00]} 55. Rd7 {[%emt 0:02:08]} (55. Ra8+ $18 {is more deadly.} Kf7 56. Ra7+ Kg8 57. Ra8+) 55... Rc6 {[%emt 0:00:00] [#]} (55... Rc8 $16) 56. Rd3 {[%emt 0:01:30]} ({White should try} 56. Rd8+ $1 $18 Kf7 57. Ra8) 56... Ra6 $16 {[%emt 0:00:00]} 57. Ra3 {[%emt 0:00:03]} g5 {[%emt 0:00:00]} 58. f4 {[%emt 0:01:11]} exf4+ {[%emt 0:02:58]} 59. gxf4 {[%emt 0:00:01]} gxf4+ {[%emt 0:01:13]} (59... Kf7 $16 60. f5 Ra8) 60. Kxf4 $18 {[%emt 0:00:04]} Kf7 {[%emt 0:00:05]} 61. Kf5 {[%emt 0:15:17]} h4 $2 {[%emt 0:15:52]} (61... Rd6 $16) 62. Bb4 {[%emt 0:00:39]} Ra7 {[%emt 0:02:05]} 63. Be1 {[%emt 0:00:55]} Ra6 $2 {[%emt 0:00:06]} (63... Ra8 64. Bxh4 Ra5+ 65. Kf4 Kg6) 64. Bb4 {[%emt 0:00:30]} (64. Bxh4 $142 Ra5+ 65. Kf4) 64... Ra7 $1 {[%emt 0:00:10]} 65. Be1 $2 {[%emt 0:00:03]} (65. Bc3) 65... Ra6 $1 {[%emt 0:00:02]} 66. Bxh4 {[%emt 0:00:06]} Ra5+ {[%emt 0:00:07]} 67. Kf4 {[%emt 0:00:01]} Ke6 {[%emt 0:00:08] [#]} 68. Be1 $1 {[%emt 0:00:28]} Ra8 {[%emt 0:02:59]} 69. Bc3 {[%emt 0:01:02]} Ra6 $2 {[%emt 0:00:46]} (69... Ra7 70. Bd4 Ra8) 70. Bb4 {[%emt 0:00:31]} Ra7 {[%emt 0:00:41]} 71. Rd3 {[%emt 0:00:53]} Ra6 {[%emt 0:00:06] Against Rd6+} 72. Ba3 {[%emt 0:00:35]} Rb6 {[%emt 0:00:34]} 73. Rd4 {[%emt 0:00:34][%cal Od4b4] Rb4! is the strong threat.} Ra6 {[%emt 0:00:19]} (73... Rb1 $142 74. Rxa4 Rf1+ 75. Ke3 Re1+ 76. Kd2 Rb1) 74. Rc4 {[%emt 0:00:16]} Kf7 {[%emt 0:00:14]} 75. Kf5 {[%emt 0:00:14] White wants to mate with Rc8.} Ra5+ {[%emt 0:00:05]} 76. Rc5 {[%emt 0:00:05]} Ra7 {[%emt 0:00:04]} 77. Rb5 {[%emt 0:02:13]} Kg7 {[%emt 0:00:12]} 78. Bb2 {[%emt 0:00:09] Weighted Error Value: White=0.15 (very precise) /Black=0.14 (very precise)   Loses game:     	---       	Black=1      Mistake:       	White=4     	Black=6      Inaccurate:     	White=3     	Black=8      OK:         	White=15    	Black=20     Best:        	White=7     	Black=1      Strong:       	White=1     	Black=5} 1-0

[Event "87th Tata Steel Challengers 2025"]
[Site "Wijk aan Zee"]
[Date "2025.01.29"]
[Round "10.3"]
[White "Yakubboev, Nodirbek"]
[Black "Bok, Benjamin"]
[Result "1/2-1/2"]
[Annotator "TA"]
[ECO "C54"]
[WhiteElo "2659"]
[BlackElo "2583"]
[PlyCount "60"]
[EventDate "2025.01.13"]
[EventType "tourn"]
[EventCountry "NED"]
[SourceTitle "playchess.com"]
[Source "ChessBase"]
[SourceQuality "1"]
[TimeControl "40/6000+30:20/3000+30:900+30"]

{[%evp 12,60,21,22,29,20,25,16,20,27,31,20,60,2,-2,-60,-66,-64,-66,-62,-75,-74,-72,-64,-45,-97,-89,-105,-86,-106,-108,-93,-101,-102,-100,-112,-108,-110,-98,-112,-114,-100,-110,-95,-115,-114,-109,-105,-104,-89,-85]} 1. e4 {[%emt 0:00:09]} e5 {[%emt 0:00:05]} 2. Nf3 {[%emt 0:00:10]} Nc6 {[%emt 0:00:05]} 3. Bc4 {[%emt 0:00:10]} Bc5 {[%emt 0:00:06]} 4. c3 {[%emt 0:00:07]} Nf6 {[%emt 0:00:07]} 5. d3 {[%emt 0:00:06]} d6 {[%emt 0:00:13]} 6. Bg5 {[%emt 0:00:09]} h6 {[%emt 0:00:08]} 7. Bh4 {[%emt 0:00:05]} a5 {[%emt 0:00:38] C54: Giuoco Piano: 4 c3 Nf6, main lines with 5 d4 and 5 d3.} 8. Nbd2 {[%emt 0:00:30]} Ba7 {[%emt 0:01:15]} 9. a4 {[%emt 0:00:55]} Qe7 {[%emt 0:00:57] The position is equal.} 10. O-O {[%emt 0:01:52]} g5 {[%emt 0:00:36]} 11. Bg3 {[%emt 0:00:02]} Nd7 {[%emt 0:02:09] [#]} 12. d4 $146 {[%emt 0:17:21]} (12. Bb5 h5 13. h4 g4 14. Ne1 Nf8 15. d4 Bd7 16. Nc2 exd4 17. Bxc6 bxc6 18. Nxd4 {0-1 Zemlyanskii,I (2495)-Robson,R (2645) Wch Rapid New York 2024 (3)}) 12... h5 $11 {[%emt 0:29:41]} 13. h4 {[%emt 0:04:43]} ({Better is} 13. h3 $11) 13... g4 $1 $15 {[%emt 0:00:08]} 14. Ne1 {[%emt 0:06:13]} (14. Ng5 Nd8 $11) 14... exd4 {[%emt 0:24:08]} 15. Nd3 {[%emt 0:01:19]} dxc3 {[%emt 0:04:06]} 16. bxc3 {[%emt 0:00:40]} Nce5 {[%emt 0:13:48]} 17. Nf4 {[%emt 0:00:53]} c6 {[%emt 0:06:44]} 18. Ba2 {[%emt 0:29:01]} (18. Rb1 $15) 18... Nc5 $17 {[%emt 0:00:12] Black is better.} 19. Nc4 {[%emt 0:02:05]} Nxc4 {[%emt 0:16:56]} 20. Bxc4 {[%emt 0:00:05]} Nxe4 {[%emt 0:00:11]} (20... Qxe4 $2 21. Re1 Rh6 22. Qd4 $18 (22. Rxe4+ Nxe4 23. Qe1 Bf5 $18)) 21. Re1 {[%emt 0:00:06][%cal Oe1e4] Black must now prevent Rxe4!.} Bf5 {[%emt 0:00:14]} 22. Nd5 {[%emt 0:02:23]} cxd5 {[%emt 0:01:46]} 23. Qxd5 {[%emt 0:00:08]} Bg6 {[%emt 0:04:21] and ...0-0 would now be decisive} 24. Bd3 {[%emt 0:05:08]} f5 {[%emt 0:02:25]} 25. Bxd6 {[%emt 0:27:33]} Bxf2+ {[%emt 0:00:19]} (25... Qxh4 26. Bb5+ (26. Qxa5 $2 Bxf2+ 27. Kf1 Rxa5 $19) 26... Kd8 27. Be5+ (27. Qxb7 $2 Qxf2+ 28. Kh1 Qh4+ 29. Bh2 Ng3#) (27. Bg3+ Ke7 28. Qe5+ Kf8 29. Qxh8+ Ke7 30. Bxh4+ Kd6 31. Rad1+ Bd4 32. Rxd4+ Kc5 33. Qxa8 Nxc3 34. Rc4+ Kd6 35. Qd8#) 27... Ke7 28. Qd7+ Kf8 29. Qg7#) 26. Kf1 {[%emt 0:00:01] [#]} O-O-O $1 {[%emt 0:00:28]} ({Stronger than} 26... Qxh4 27. Bb5+ Kd8 28. Be5+ (28. Bg3+ Ke7 $18) 28... Ke7 29. Qd7+ Kf8 30. Qg7#) (26... Qd7 $2 27. Rxe4+ (27. Qe5+ Kd8 $18) 27... fxe4 28. Qe5+ (28. Bb5 O-O-O $18) 28... Kd8 29. Bb5 $18 (29. Qxh8+ Be8 $18)) 27. Bxe4 {[%emt 0:00:35] White wants to mate with Qc4+.} (27. Qc4+ $2 Bc5 $19) 27... Rxd6 {[%emt 0:00:45]} 28. Bxf5+ {[%emt 0:00:01]} Kb8 {[%emt 0:00:45]} ({Not} 28... Kd8 $2 29. Qxa5+ Ke8 30. Rxe7+ Kxe7 31. Qc7+ (31. Kxf2 Rf6 $18) 31... Ke8 32. Qxd6 $18) 29. Rxe7 {[%emt 0:00:11]} Rxd5 {[%emt 0:00:02]} 30. Bxg6 {[%emt 0:00:08]} Bxh4 {[%emt 0:01:10] Black took control after the opening.   Weighted Error Value: White=0.13 (very precise) /Black=0.03 (flawless)   Mistake:       	White=3     	---        Inaccurate:     	---       	Black=1      OK:         	White=9     	Black=12     Best:        	White=3     	Black=5      Strong:       	---       	Black=2} 1/2-1/2

[Event "87th Tata Steel Challengers 2025"]
[Site "Wijk aan Zee"]
[Date "2025.01.29"]
[Round "10.4"]
[White "Nguyen, Thai Dai Van"]
[Black "Vaishali, Rameshbabu"]
[Result "1-0"]
[Annotator "TA"]
[ECO "A13"]
[WhiteElo "2668"]
[BlackElo "2476"]
[PlyCount "151"]
[EventDate "2025.01.13"]
[EventType "tourn"]
[EventCountry "NED"]
[SourceTitle "playchess.com"]
[Source "ChessBase"]
[SourceQuality "1"]
[TimeControl "40/6000+30:20/3000+30:900+30"]

{[%evp 9,151,10,26,22,16,20,20,26,21,22,20,13,12,15,17,22,35,0,27,20,29,14,20,23,18,14,18,10,16,21,19,21,23,9,16,10,14,0,14,0,20,16,12,18,12,0,0,0,0,-11,14,9,37,48,45,48,62,37,44,44,44,37,37,37,37,37,54,41,38,28,37,23,35,31,35,35,60,0,37,46,47,14,54,39,39,39,55,39,39,41,37,33,33,33,33,27,48,44,48,41,53,31,81,0,9,0,0,-32,46,46,46,38,45,36,47,47,45,0,25,37,43,45,42,0,49,38,60,44,91,83,191,189,276,268,266,252,251,264,2062,1740,29989,29990,29995,29996]} 1. c4 {[%emt 0:00:09]} e6 {[%emt 0:00:33]} 2. g3 {[%emt 0:02:15]} d5 {[%emt 0:00:12]} 3. Bg2 {[%emt 0:00:06]} d4 {[%emt 0:00:11]} 4. Nf3 {[%emt 0:00:32]} Nc6 {[%emt 0:00:27]} 5. O-O {[%emt 0:00:13]} Bc5 {[%emt 0:00:58]} 6. d3 {[%emt 0:01:31] A13: English Opening: 1...e6.} Nf6 {[%emt 0:00:22]} 7. Nbd2 {[%emt 0:00:14]} O-O {[%emt 0:00:37] The main line 7...0-0 scores better than 7...a5.} 8. Nb3 {[%emt 0:01:44] The position is equal.} Be7 {[%emt 0:00:32]} 9. e3 {[%emt 0:00:46]} dxe3 {[%emt 0:00:40]} 10. Bxe3 {[%emt 0:00:07]} Ng4 {[%emt 0:01:32]} 11. Bc5 {[%emt 0:00:10]} Bxc5 {[%emt 0:00:50]} 12. Nxc5 {[%emt 0:00:02]} b6 {[%emt 0:00:18]} 13. Ne4 $5 {[%emt 0:11:49][%mdl 4] A promising side line.} Bb7 {[%emt 0:00:54]} 14. d4 {[%emt 0:01:00]} Rb8 {[%emt 0:16:54]} 15. Re1 {[%emt 0:05:28]} Nf6 {[%emt 0:11:21]} 16. Nc3 {[%emt 0:01:15]} Ne7 {[%emt 0:03:22]} 17. Ne5 {[%emt 0:04:03]} Bxg2 {[%emt 0:26:48]} 18. Kxg2 {[%emt 0:00:26]} a6 $146 {[%emt 0:01:07]} (18... c6 19. b3 Qc7 20. Qe2 Rfd8 21. Rad1 Nf5 22. Nf3 b5 23. c5 b4 24. Na4 Rd5 {1-0 Giri,A (2760)-Lupulescu,C (2581) Julius Baer Rapid Div 3 W 2023 (2.1)}) 19. Qd3 {[%emt 0:31:43]} b5 {[%emt 0:14:47]} 20. b3 {[%emt 0:06:55]} bxc4 {[%emt 0:06:33]} 21. Qxc4 {[%emt 0:06:30]} Qd6 {[%emt 0:01:49]} 22. Rad1 {[%emt 0:00:07]} Rfd8 {[%emt 0:01:49]} 23. Kg1 {[%emt 0:03:10]} Rb4 {[%emt 0:05:50]} 24. Qe2 {[%emt 0:02:23]} (24. Qc5 Kf8) 24... h6 {[%emt 0:07:16]} (24... Rxd4 $2 25. Rxd4 Qxd4 26. Rd1 $18) 25. Qc2 {[%emt 0:05:16] Dodges Nf5} c6 {[%emt 0:03:22]} (25... Rxd4 $2 26. Rxd4 Qxd4 27. Rd1 $18) 26. Nc4 {[%emt 0:06:21]} Qb8 {[%emt 0:00:20]} 27. Na4 {[%emt 0:00:49]} Nf5 {[%emt 0:01:30]} 28. Qc3 {[%emt 0:06:14]} Nd5 {[%emt 0:02:30]} 29. Qc1 {[%emt 0:00:07]} Rc8 {[%emt 0:00:56]} 30. Nc5 {[%emt 0:01:31]} Qa7 {[%emt 0:00:32][%cal Of5d4]} (30... a5 {feels hotter.} 31. g4 Nh4 32. Rd3 Qf4) 31. a3 {[%emt 0:02:08]} Rbb8 {[%emt 0:00:08][%cal Of5d4]} 32. b4 {[%emt 0:00:03]} Rd8 {[%emt 0:00:49]} 33. Na5 {[%emt 0:01:56]} Rbc8 {[%emt 0:00:38]} 34. Rd3 {[%emt 0:03:15]} Nde7 {[%emt 0:00:28]} 35. Qc4 {[%emt 0:00:58]} Rd5 {[%emt 0:00:16]} 36. Red1 {[%emt 0:02:06]} Rcd8 {[%emt 0:00:20]} 37. Kg2 {[%emt 0:01:08]} (37. Nxa6 $2 Nd6 38. Nxc6 Nxc6 39. Qxc6 Rc8 $19) 37... h5 {[%emt 0:00:54]} 38. Nab3 {[%emt 0:01:57][%csl Oa6] White attacks a weakness} Ra8 {[%emt 0:00:28]} 39. Rc1 {[%emt 0:01:34]} Qb6 {[%emt 0:00:27]} 40. Na5 {[%emt 0:00:38]} Nd6 {[%emt 0:00:35]} 41. Qc2 {[%emt 0:05:12]} Ndf5 {[%emt 0:09:09]} 42. Rcd1 {[%emt 0:14:09]} Rad8 {[%emt 0:03:12][%cal Rf5d4]} 43. Qc4 {[%emt 0:01:10]} (43. Nc4 $14 Qa7 44. Qc3) 43... Ra8 {[%emt 0:01:18]} 44. Na4 {[%emt 0:04:35]} Qc7 {[%emt 0:10:39]} 45. Rc1 {[%emt 0:03:54][%cal Ra5c6]} Rd6 {[%emt 0:05:31]} 46. Nc5 {[%emt 0:03:38]} Qb6 {[%emt 0:01:13]} 47. h4 {[%emt 0:05:33]} Qa7 {[%emt 0:05:46]} 48. Re1 {[%emt 0:02:14]} Rd5 {[%emt 0:08:19]} 49. Re5 {[%emt 0:02:35]} Qb6 {[%emt 0:03:14]} 50. Rd2 {[%emt 0:06:23]} Qb5 {[%emt 0:03:35]} 51. Qc3 {[%emt 0:00:17]} Rad8 {[%emt 0:01:00][%cal Rd5d4]} 52. Nab3 {[%emt 0:01:43]} R8d6 {[%emt 0:03:02]} 53. Rd3 {[%emt 0:04:29]} Qb6 {[%emt 0:00:33]} 54. Qd2 {[%emt 0:00:43]} Ng6 {[%emt 0:00:25]} 55. Re4 {[%emt 0:00:44]} Qb5 {[%emt 0:00:32]} ({Black should play} 55... Rd8 $14) 56. Kg1 {[%emt 0:00:53]} (56. Na5 $16) 56... Rd8 $11 {[%emt 0:00:28]} 57. Qd1 {[%emt 0:00:11]} Nd6 {[%emt 0:00:35]} 58. Re2 {[%emt 0:00:02]} Nf5 {[%emt 0:00:15]} (58... Nc4 $1 $15) 59. Red2 $14 {[%emt 0:00:47]} Nd6 {[%emt 0:00:35]} 60. Rc2 {[%emt 0:00:32]} Nf5 {[%emt 0:00:22][%cal Og6e5]} 61. Rdd2 {[%emt 0:15:41]} (61. Qxh5 Nxg3 (61... Nxd4 62. Rxd4 Rxd4 63. Nxd4 $14) 62. Qg4 Nf5 $17) 61... Nd6 {[%emt 0:15:45] Wards off Ne4} 62. Na5 {[%emt 0:00:14]} Nf5 {[%emt 0:00:32][%cal Rf5d4]} 63. Nab3 {[%emt 0:00:53][%cal Oc5e4]} (63. Qxh5 $2 Nxg3 (63... Rxd4 64. Nab3 $11) (63... Nxd4 $2 64. Rxd4 Rxd4 65. Qe2 $19) 64. Qg4 Nf5 $19) 63... Nd6 $1 {[%emt 0:00:09]} 64. Qf1 {[%emt 0:00:43] Prevents Nc4} Ra8 {[%emt 0:00:52]} 65. Na5 {[%emt 0:00:29]} Nf5 {[%emt 0:00:25]} 66. Nab3 {[%emt 0:00:23]} Nge7 {[%emt 0:00:24]} (66... Nd6 $11) 67. Qd1 {[%emt 0:00:41][%cal Oc5e4]} Rad8 {[%emt 0:00:19]} 68. Rc3 {[%emt 0:00:47]} (68. Qxh5 $2 Ne3 (68... Nxd4 69. Nxd4 Rxd4 70. Qg5 $16) 69. Qf3 Nxc2 70. Rxc2 Nf5 $19) 68... Ng6 {[%emt 0:00:46]} (68... Nd6 $14) 69. Ne4 $16 {[%emt 0:01:12][%cal Oe4g5]} ({Inferior is} 69. Qxh5 Nxg3 (69... Nxd4 70. Rxd4 Rxh5 71. Rxd8+ Kh7 72. Nd4 $11) 70. Qg4 Nh5 $17 (70... Qf1+ 71. Kh2 $11)) 69... Qb6 {[%emt 0:00:35]} (69... Nd6 $16 70. Rc5 Qa4) 70. Ng5 $18 {[%emt 0:00:30]} (70. Qxh5 Nxg3 (70... Nxd4 71. Ng5 $16) 71. Qg4 Nxe4 72. Qxe4 R8d6 $16) 70... Nxd4 {[%emt 0:00:32]} (70... R8d7 $142 71. Qxh5 Nf8) 71. Nxd4 {[%emt 0:00:04]} ({Not} 71. Qxh5 Nxb3 72. Rxd5 Rxd5 $16) 71... Rxd4 {[%emt 0:00:02]} 72. Rxd4 {[%emt 0:00:07]} Rxd4 {[%emt 0:00:34]} 73. Qxh5 {[%emt 0:00:11] [#] Black must now prevent Rf3.} Rd2 $2 {[%emt 0:00:51]} (73... Rd5 74. Qh7+ Kf8) 74. Rf3 {[%emt 0:00:25]} Ne5 {[%emt 0:00:31]} 75. Rxf7 {[%emt 0:00:04][%csl Gg5][%cal Rh5h7]} Rd1+ {[%emt 0:00:31]} 76. Kg2 {[%emt 0:00:24] Weighted Error Value: White=0.10 (very precise) /Black=0.09 (flawless)   Mistake:       	White=2     	Black=7      Inaccurate:     	White=4     	Black=5      OK:         	White=20    	Black=22     Best:        	White=5     	Black=1      Strong:       	---       	Black=1} 1-0